[Event "FRA-ch Youth U14 2018"]
[Site "Agen"]
[Date "2018.04.19"]
[Round "6"]
[White "Courjal, Pauline"]
[Black "Nguyen, Thao Nhi"]
[Result "0-1"]
[ECO "A52"]
[WhiteElo "1509"]
[BlackElo "1861"]
[Annotator "NA"]
[PlyCount "82"]
[EventDate "2018.??.??"]
[EventType "swiss"]
[EventCountry "FRA"]
[SourceTitle "playchess.com"]
[Source "ChessBase"]
[SourceQuality "1"]
[TimeControl "5400+30"]

1. d4 {[%emt 0:00:00]} Nf6 {[%emt 0:00:30]} 2. c4 {[%emt 0:00:30]} e5 {[%emt 0:00:30]} 3. dxe5 {[%emt 0:00:30]} Ng4 {[%emt 0:00:30]} 4. e4 {[%emt 0:00:30]} Nxe5 {[%emt 0:00:00]} 5. f4 {[%emt 0:00:00]} Nec6 {[%emt 0:00:00]} 6. Nf3 {[%emt 0:03:18]} Bc5 {[%emt 0:01:19]} 7. Nc3 {[%emt 0:05:35]} O-O {[%emt 0:02:34]} 8. a3 {[%emt 0:05:19]} a5 {[%emt 0:01:44]} 9. Bd3 {[%emt 0:01:32]} d6 {[%emt 0:01:50]} 10. Bd2 {[%emt 0:10:44]} f5 {[%emt 0:01:02]} 11. exf5 {[%emt 0:02:11]} Re8+ {[%emt 0:03:35]} 12. Ne2 {[%emt 0:06:34]} Nd4 {[%emt 0:00:28]} 13. Nfxd4 {[%emt 0:00:15]} Bxd4 {[%emt 0:00:09]} 14. Qc2 {[%emt 0:01:38]} Qf6 {[%emt 0:01:35]} 15. O-O-O {[%emt 0:03:15]} Be3 {[%emt 0:05:12]} 16. Bxe3 {[%emt 0:04:14]} Rxe3 {[%emt 0:00:06]} 17. Be4 {[%emt 0:03:40]} Nc6 {[%emt 0:11:57]} 18. Nc3 {[%emt 0:03:40]} Nd4 {[%emt 0:14:18]} 19. Qf2 {[%emt 0:07:53]} Ne2+ {[%emt 0:01:00]} 20. Kc2 {[%emt 0:00:45]} Rxc3+ {[%emt 0:01:29]} 21. Kb1 {[%emt 0:09:00]} Bxf5 {[%emt 0:02:51]} 22. Qxe2 {[%emt 0:02:12]} Bxe4+ {[%emt 0:02:30]} 23. Qxe4 {[%emt 0:00:24]} Rb3 {[%emt 0:00:10]} 24. Qc2 {[%emt 0:02:24]} Rb6 {[%emt 0:04:51]} 25. g3 {[%emt 0:02:38]} Re8 {[%emt 0:00:13]} 26. Rhe1 {[%emt 0:02:04]} Re6 {[%emt 0:02:18]} 27. Rxe6 {[%emt 0:04:23]} Qxe6 {[%emt 0:00:14]} 28. c5 {[%emt 0:00:41]} Rc6 {[%emt 0:01:25]} 29. cxd6 {[%emt 0:01:46]} cxd6 {[%emt 0:02:12]} 30. Qa4 {[%emt 0:01:00]} Qe2 {[%emt 0:02:52]} 31. h4 {[%emt 0:01:27]} b5 {[%emt 0:01:35]} 32. Qb3+ {[%emt 0:00:45]} Kf8 {[%emt 0:01:37]} 33. Qd5 {[%emt 0:01:23]} Qc2+ {[%emt 0:00:08]} 34. Ka1 {[%emt 0:00:16]} b4 {[%emt 0:01:54]} 35. Qd3 {[%emt 0:01:57]} b3 {[%emt 0:02:29]} 36. Qf1 {[%emt 0:02:04]} d5 {[%emt 0:01:22]} 37. f5 {[%emt 0:02:11]} d4 {[%emt 0:00:10]} 38. f6 {[%emt 0:00:11]} gxf6 {[%emt 0:00:05]} 39. g4 {[%emt 0:01:04]} d3 {[%emt 0:00:27]} 40. Qxd3 {[%emt 0:00:13]} Qxd3 {[%emt 0:00:07]} 41. Rxd3 {[%emt 0:00:08]} Rc1# {[%emt 0:00:36]} 0-1

[Event "FRA-ch Youth U14 2018"]
[Site "Agen"]
[Date "2018.04.20"]
[Round "7"]
[White "Bacrot, Alexandre"]
[Black "Papadiamandis, Elliot"]
[Result "0-1"]
[ECO "A48"]
[WhiteElo "2180"]
[BlackElo "2016"]
[Annotator "NA"]
[PlyCount "204"]
[EventDate "2018.??.??"]
[EventType "swiss"]
[EventCountry "FRA"]
[SourceTitle "playchess.com"]
[Source "ChessBase"]
[SourceQuality "1"]
[TimeControl "5400+30"]

1. d4 {[%emt 0:00:00]} Nf6 {[%emt 0:00:07]} 2. Nf3 {[%emt 0:00:00]} g6 {[%emt 0:00:08]} 3. Nbd2 {[%emt 0:00:00]} d5 {[%emt 0:01:21]} 4. b4 {[%emt 0:00:00] D02: 1 d4 d5 2 Nf3 sidelines, including 2...Nf6 3 g3 and 2...Nf6 3 Bf4} (4. e3 Nc6 5. b3 Bg7 6. Bb2 O-O 7. Be2 a5 8. a3 b6 9. O-O e6 10. c4 Ne7 11. cxd5 exd5 {½-½ (38) So,W (2792)-Svidler,P (2768) Wijk aan Zee 2018}) 4... Bg7 {[%emt 0:02:14]} 5. Bb2 {[%emt 0:00:07]} Nbd7 {[%emt 0:03:26]} 6. e3 {[%emt 0:00:06]} c6 {[%emt 0:01:59]} 7. Be2 $146 {[%emt 0:00:18]} ({Predecessor:} 7. c4 a5 8. b5 O-O 9. cxd5 cxd5 10. Rc1 e5 11. Nxe5 Nxe5 12. dxe5 Ng4 13. Nf3 Qe7 14. Be2 Nxe5 15. Nxe5 Bxe5 16. Bxe5 Qxe5 {½-½ (16) Ferrufino,B (2199)-Trois,F (2352) Santa Cruz 2008}) 7... Nb6 {[%emt 0:04:14]} 8. c4 {[%emt 0:03:25]} dxc4 {[%emt 0:04:44]} 9. Nxc4 {[%emt 0:00:49]} Be6 {[%emt 0:02:34]} 10. Na5 {[%emt 0:04:26]} Qc7 {[%emt 0:03:31]} 11. O-O {[%emt 0:01:04]} O-O {[%emt 0:01:28]} 12. a3 {[%emt 0:00:37]} Rad8 {[%emt 0:04:29]} 13. Rc1 {[%emt 0:03:03]} Qb8 {[%emt 0:01:01]} 14. Ne5 {[%emt 0:06:15]} Nbd7 {[%emt 0:09:07]} 15. Nexc6 {[%emt 0:13:04]} bxc6 {[%emt 0:00:13]} 16. Nxc6 {[%emt 0:00:01]} Qd6 {[%emt 0:00:15]} 17. Nxd8 {[%emt 0:00:08]} Rxd8 {[%emt 0:00:05]} 18. Qa4 {[%emt 0:03:48]} Qb8 {[%emt 0:02:59]} 19. Qa5 {[%emt 0:04:02]} Nb6 {[%emt 0:03:22]} 20. b5 {[%emt 0:07:47]} Ne4 {[%emt 0:04:08]} 21. a4 {[%emt 0:04:20]} Nd6 {[%emt 0:02:48]} 22. Qb4 {[%emt 0:06:03]} Nd5 {[%emt 0:01:55]} 23. Qa3 {[%emt 0:01:39]} Nb6 {[%emt 0:03:30]} 24. Rfd1 {[%emt 0:01:39]} Ndc4 {[%emt 0:01:07]} 25. Qb4 {[%emt 0:10:55]} Nxb2 {[%emt 0:04:31]} 26. Qxb2 {[%emt 0:00:12]} Nxa4 {[%emt 0:01:28]} 27. Qb4 {[%emt 0:00:06]} Nb6 {[%emt 0:00:06]} 28. Qxe7 {[%emt 0:02:13]} Bf8 {[%emt 0:02:48]} 29. Qc7 {[%emt 0:00:28]} Bb3 {[%emt 0:01:46]} 30. Rf1 {[%emt 0:00:41]} Nd5 {[%emt 0:01:14]} 31. Qxb8 {[%emt 0:00:46]} Rxb8 {[%emt 0:00:13]} 32. g3 {[%emt 0:10:58]} Ba4 {[%emt 0:02:38]} 33. e4 {[%emt 0:02:00]} Nb4 {[%emt 0:00:32]} 34. Ra1 {[%emt 0:00:33]} Bxb5 {[%emt 0:00:22]} 35. Bxb5 {[%emt 0:00:07]} Rxb5 {[%emt 0:00:05]} 36. Rxa7 {[%emt 0:00:07]} Nc6 {[%emt 0:04:07]} 37. Rd7 {[%emt 0:00:29]} Rb4 {[%emt 0:03:43]} 38. Rd1 {[%emt 0:00:24]} h5 {[%emt 0:01:56]} 39. Kg2 {[%emt 0:07:00]} Rb2 {[%emt 0:08:50]} 40. Rc7 {[%emt 0:01:19]} Nb4 {[%emt 0:00:48]} 41. d5 {[%emt 0:00:52]} Bd6 {[%emt 0:00:09]} 42. Rc8+ {[%emt 0:00:25]} Kg7 {[%emt 0:00:02]} 43. Kf1 {[%emt 0:02:40]} g5 {[%emt 0:02:12]} 44. h3 {[%emt 0:02:31]} Kf6 {[%emt 0:01:06]} 45. Rc3 {[%emt 0:01:00]} g4 {[%emt 0:02:52]} 46. hxg4 {[%emt 0:02:26]} hxg4 {[%emt 0:00:02]} 47. f4 {[%emt 0:01:22]} gxf3 {[%emt 0:00:10]} 48. Rxf3+ {[%emt 0:00:04]} Ke5 {[%emt 0:01:38]} 49. Re1 {[%emt 0:00:56]} Nc2 {[%emt 0:00:45]} 50. Rxf7 {[%emt 0:01:04]} Nxe1 {[%emt 0:00:33]} 51. Kxe1 {[%emt 0:00:06]} Kxe4 {[%emt 0:00:12]} 52. g4 {[%emt 0:00:48]} Kxd5 {[%emt 0:00:29]} 53. g5 {[%emt 0:00:22]} Rg2 {[%emt 0:00:12]} 54. Rf5+ {[%emt 0:00:47]} Ke4 {[%emt 0:00:10]} 55. Kf1 {[%emt 0:00:22]} Rb2 {[%emt 0:01:16]} ({Much weaker is} 55... Kxf5 $6 56. Kxg2 Kxg5 $11) 56. Rf6 {[%emt 0:00:11]} Be5 {[%emt 0:00:27]} 57. Rf7 {[%emt 0:00:12]} Rb6 {[%emt 0:00:23]} 58. Ra7 {[%emt 0:00:56]} Rg6 {[%emt 0:00:30]} 59. Ra5 {[%emt 0:00:06]} Rxg5 {[%emt 0:00:10]} 60. Ra3 {[%emt 0:00:54]} Bd4 {[%emt 0:00:09]} 61. Rh3 {[%emt 0:00:21]} Rg1+ {[%emt 0:00:06]} 62. Ke2 {[%emt 0:00:01]} Rg2+ {[%emt 0:00:01]} 63. Ke1 {[%emt 0:00:20]} Be3 {[%emt 0:00:30]} 64. Kf1 {[%emt 0:01:16]} Ra2 {[%emt 0:00:44]} 65. Rg3 {[%emt 0:00:45]} Bf4 {[%emt 0:00:25]} 66. Rh3 {[%emt 0:00:12]} Bh2 {[%emt 0:01:05]} 67. Rb3 {[%emt 0:00:34]} Be5 {[%emt 0:00:27]} 68. Rh3 {[%emt 0:00:18]} Kf4 {[%emt 0:00:33]} 69. Ke1 {[%emt 0:00:58]} Rb2 {[%emt 0:00:35]} 70. Kd1 {[%emt 0:00:22]} Ke4 {[%emt 0:00:24]} 71. Kc1 {[%emt 0:00:35]} Rg2 {[%emt 0:00:07]} 72. Rb3 {[%emt 0:00:20]} Bd4 {[%emt 0:00:13]} 73. Kb1 {[%emt 0:00:29]} Kd5 {[%emt 0:00:08]} 74. Kc1 {[%emt 0:00:33]} Be5 {[%emt 0:00:14]} 75. Kd1 {[%emt 0:00:14]} Kc4 {[%emt 0:00:15]} 76. Rf3 {[%emt 0:00:39]} Kd4 {[%emt 0:00:33]} 77. Ke1 {[%emt 0:00:32]} Ke4 {[%emt 0:00:10]} 78. Rh3 {[%emt 0:00:22]} Bg3+ {[%emt 0:00:10]} 79. Kd1 {[%emt 0:00:39]} Kd3 {[%emt 0:01:04]} 80. Kc1 {[%emt 0:00:05]} Kc3 {[%emt 0:00:59]} 81. Kb1 {[%emt 0:00:16]} Kb3 {[%emt 0:00:35]} 82. Kc1 {[%emt 0:00:09]} Kc4 {[%emt 0:00:43]} 83. Rh8 {[%emt 0:01:02]} Bf4+ {[%emt 0:00:39]} 84. Kd1 {[%emt 0:00:16]} Be3 {[%emt 0:00:33]} 85. Rd8 {[%emt 0:01:04]} Bd4 {[%emt 0:00:09]} 86. Kc1 {[%emt 0:00:24]} Kc3 {[%emt 0:01:06]} 87. Kb1 {[%emt 0:00:34]} Rb2+ {[%emt 0:02:30]} 88. Kc1 {[%emt 0:00:28]} Rd2 {[%emt 0:01:42]} 89. Rc8+ {[%emt 0:00:31]} Kd3 {[%emt 0:00:07]} 90. Kb1 {[%emt 0:00:25]} Rb2+ {[%emt 0:00:37]} 91. Kc1 {[%emt 0:00:06]} Ra2 {[%emt 0:00:29]} 92. Rb8 {[%emt 0:00:21]} Ra1+ {[%emt 0:00:53]} 93. Rb1 {[%emt 0:00:07]} Be3+ {[%emt 0:01:33]} (93... Ra5 94. Rb3+ Bc3 95. Rb8 Rh5 96. Rd8+ Bd4 97. Kb1 Ra5 98. Rxd4+ Kxd4 99. Kc2 Kc4 100. Kd2 Re5 101. Kc2 Re2+ 102. Kd1 Kd3 103. Kc1 Kc3 104. Kb1 Re1+ 105. Ka2 Rh1 106. Ka3 Ra1#) 94. Kb2 {[%emt 0:00:01]} Ra8 $11 {[%emt 0:00:23]} 95. Kb3 {[%emt 0:02:00]} Bd2 {[%emt 0:00:34]} 96. Rh1 {[%emt 0:00:33]} Rb8+ {[%emt 0:00:25]} 97. Ka4 {[%emt 0:00:41]} Bc3 {[%emt 0:00:26]} 98. Rh4 {[%emt 0:00:29]} Bd4 {[%emt 0:00:21]} 99. Ka5 {[%emt 0:00:14]} Kc4 {[%emt 0:00:27]} 100. Ka6 {[%emt 0:00:11]} Rb6+ {[%emt 0:01:52]} 101. Ka5 {[%emt 0:00:01]} Re6 {[%emt 0:00:13]} 102. Rh5 {[%emt 0:01:10]} Bc3+ {[%emt 0:00:21]} 0-1

[Event "FRA-ch Youth U14 2018"]
[Site "Agen"]
[Date "2018.04.20"]
[Round "7"]
[White "Popov, Konstantin"]
[Black "Girel, Joseph"]
[Result "1/2-1/2"]
[ECO "C06"]
[WhiteElo "2150"]
[BlackElo "1969"]
[Annotator "NA"]
[PlyCount "132"]
[EventDate "2018.??.??"]
[EventType "swiss"]
[EventCountry "FRA"]
[SourceTitle "playchess.com"]
[Source "ChessBase"]
[SourceQuality "1"]
[TimeControl "5400+30"]

1. e4 {[%emt 0:00:00]} e6 {[%emt 0:00:20]} 2. d4 {[%emt 0:00:00]} d5 {[%emt 0:00:06]} 3. Nd2 {[%emt 0:00:09]} Nf6 {[%emt 0:00:30]} 4. e5 {[%emt 0:00:19]} Nfd7 {[%emt 0:00:06]} 5. Bd3 {[%emt 0:00:16]} c5 {[%emt 0:00:08]} 6. c3 {[%emt 0:00:10]} Nc6 {[%emt 0:00:08]} 7. Ne2 {[%emt 0:00:19]} cxd4 {[%emt 0:00:08]} 8. cxd4 {[%emt 0:00:15]} f6 {[%emt 0:00:08]} 9. exf6 {[%emt 0:00:21]} Nxf6 {[%emt 0:00:06]} 10. Nf3 {[%emt 0:00:47]} Bd6 {[%emt 0:00:07]} 11. Bf4 {[%emt 0:01:07]} O-O {[%emt 0:01:48]} 12. O-O {[%emt 0:01:46] LiveBook: 924 Games} Ng4 {[%emt 0:02:35] C06: French Tarrasch: 3...Nf6 4 e5 Nfd7 5 Bd3 main lines} (12... Bxf4 13. Nxf4 Ne4 14. Qc1 Ng5 15. Nxg5 Qxg5 16. Ne2 Qf6 17. Qc5 Bd7 18. Rad1 Rac8 19. Qd6 Be8 20. Rd2 Bh5 21. Ng3 Bg6 22. Bxg6 hxg6 23. Ne2 g5 24. h3 Rf7 {1-0 (68) Pridorozhni,A (2570)-Volkov,S (2612) Serpukhov 2018}) 13. Bxd6 {[%emt 0:07:18]} Qxd6 {[%emt 0:00:10]} 14. Ng3 {[%emt 0:00:06]} e5 {[%emt 0:01:20]} 15. dxe5 {[%emt 0:02:04]} Ngxe5 {[%emt 0:01:29]} 16. Nxe5 {[%emt 0:00:45]} Nxe5 {[%emt 0:00:40]} 17. Qc2 {[%emt 0:03:13]} Nxd3 {[%emt 0:03:27]} 18. Qxd3 {[%emt 0:00:07]} b6 $146 {[%emt 0:01:45]} ({Find the theoretical novelty and annotate with similar games:} 18... Be6 19. Rad1 Kh8 20. Ne2 Bf7 {1-0 (50) Varacalli,F (2303)-Ilampoornan,R (1860) Ahmedabad 2017}) 19. Rac1 {[%emt 0:03:25]} Bb7 {[%emt 0:02:53]} 20. Nf5 {[%emt 0:05:52]} Qe5 {[%emt 0:03:56]} 21. Nd4 {[%emt 0:02:13]} Ba6 {[%emt 0:01:32]} 22. Qxa6 {[%emt 0:01:11]} Qxd4 {[%emt 0:00:06]} 23. Qa3 {[%emt 0:09:04]} Rae8 {[%emt 0:06:45]} 24. Rcd1 {[%emt 0:03:23]} Qf6 {[%emt 0:01:20]} 25. Rd2 {[%emt 0:06:55]} Qf4 $11 {[%emt 0:02:14]} 26. Qd3 {[%emt 0:06:01]} Re5 {[%emt 0:04:19]} 27. b3 {[%emt 0:19:59]} Rd8 {[%emt 0:02:53]} 28. g3 {[%emt 0:00:20]} Qf6 {[%emt 0:01:32]} 29. Rfd1 {[%emt 0:02:13]} Qe6 {[%emt 0:01:40]} 30. Qc3 {[%emt 0:05:51]} Re1+ {[%emt 0:00:49]} 31. Rxe1 {[%emt 0:00:28]} Qxe1+ {[%emt 0:00:13]} 32. Kg2 {[%emt 0:00:17]} Qe4+ {[%emt 0:00:59]} 33. f3 {[%emt 0:00:58]} Qe1 {[%emt 0:06:44]} 34. Qd3 {[%emt 0:00:40]} Qe6 {[%emt 0:01:38]} 35. Qd4 {[%emt 0:01:14]} h6 {[%emt 0:01:01]} 36. a4 {[%emt 0:02:05]} Kh8 {[%emt 0:01:11]} 37. g4 {[%emt 0:02:27]} Qe1 {[%emt 0:02:38]} 38. Qf2 {[%emt 0:04:54]} Qb1 {[%emt 0:01:29]} 39. Qe3 {[%emt 0:00:20]} Qc1 {[%emt 0:07:18]} 40. g5 {[%emt 0:02:51]} Rd6 {[%emt 0:03:10]} 41. h4 {[%emt 0:02:07]} Re6 {[%emt 0:03:23]} 42. Qd4 {[%emt 0:01:00]} Qe1 {[%emt 0:01:25]} 43. Rc2 {[%emt 0:03:08]} Re2+ {[%emt 0:01:34]} 44. Rxe2 {[%emt 0:00:06]} Qxe2+ {[%emt 0:00:04]} 45. Kg3 {[%emt 0:00:27]} Qe1+ {[%emt 0:01:25]} 46. Kg4 {[%emt 0:00:43]} Qe6+ {[%emt 0:00:48]} 47. Kf4 {[%emt 0:00:38]} Qf7+ {[%emt 0:01:06]} 48. Ke3 {[%emt 0:00:21]} hxg5 {[%emt 0:00:46]} 49. hxg5 {[%emt 0:00:13]} Qe7+ {[%emt 0:00:21]} 50. Kf4 {[%emt 0:00:11]} Qf7+ {[%emt 0:00:43]} 51. Kg3 {[%emt 0:00:45]} Qe6 {[%emt 0:01:00]} 52. f4 {[%emt 0:01:04]} Qf5 {[%emt 0:03:37]} 53. Qe3 {[%emt 0:03:13]} Kh7 {[%emt 0:01:05]} 54. b4 {[%emt 0:00:29]} Qb1 {[%emt 0:01:32]} 55. Qd4 {[%emt 0:00:29]} Qe1+ {[%emt 0:05:18]} 56. Kg4 {[%emt 0:00:16]} Qe6+ {[%emt 0:00:34]} 57. f5 {[%emt 0:00:33]} Qe2+ {[%emt 0:00:06]} 58. Kf4 {[%emt 0:00:08]} Qh2+ {[%emt 0:00:11]} 59. Kg4 {[%emt 0:01:03]} Qg2+ {[%emt 0:00:13]} 60. Kh4 {[%emt 0:00:30]} Qh2+ {[%emt 0:00:06]} 61. Kg4 {[%emt 0:00:04]} Qg2+ {[%emt 0:00:05]} 62. Kf4 {[%emt 0:00:48]} Qh2+ {[%emt 0:00:06]} 63. Kf3 {[%emt 0:00:28]} Qh3+ {[%emt 0:00:13]} 64. Kf4 {[%emt 0:00:19]} Qh4+ 65. Ke5 Qxg5 66. Qxd5 Qe7+ {Qd4 Qg5} 1/2-1/2

[Event "FRA-ch Youth U14 2018"]
[Site "Agen"]
[Date "2018.04.20"]
[Round "7"]
[White "Bassini, Emile"]
[Black "Harutyunyan, Safar"]
[Result "1-0"]
[ECO "B99"]
[WhiteElo "2021"]
[BlackElo "2163"]
[Annotator "NA"]
[PlyCount "75"]
[EventDate "2018.??.??"]
[EventType "swiss"]
[EventCountry "FRA"]
[SourceTitle "playchess.com"]
[Source "ChessBase"]
[SourceQuality "1"]
[TimeControl "5400+30"]

1. e4 {[%emt 0:00:00]} c5 {[%emt 0:00:05]} 2. Nf3 {[%emt 0:00:00]} d6 {[%emt 0:00:06]} 3. d4 {[%emt 0:00:00]} cxd4 {[%emt 0:00:23]} 4. Nxd4 {[%emt 0:00:00]} Nf6 {[%emt 0:00:09] LiveBook: 94261 Games} 5. Nc3 {[%emt 0:00:00]} a6 {[%emt 0:00:18]} 6. Bg5 {[%emt 0:00:00]} e6 {[%emt 0:00:12]} 7. f4 {[%emt 0:00:00]} Be7 {[%emt 0:00:21]} 8. Qf3 {[%emt 0:00:01]} Nbd7 {[%emt 0:03:43]} 9. O-O-O {[%emt 0:00:35]} Qc7 {[%emt 0:01:11]} 10. Bd3 {[%emt 0:00:17]} b5 {[%emt 0:03:55]} 11. a3 {[%emt 0:02:27]} Bb7 {[%emt 0:01:48]} 12. Rhe1 {[%emt 0:00:08]} O-O {[%emt 0:04:41]} 13. Qh3 {[%emt 0:01:39]} Nc5 {[%emt 0:03:49]} 14. e5 {[%emt 0:02:38]} Nxd3+ {[%emt 0:13:58]} 15. Rxd3 {[%emt 0:00:31]} dxe5 {[%emt 0:26:25]} 16. fxe5 {[%emt 0:00:42]} Nd5 {[%emt 0:03:06]} 17. Nxe6 $2 {[%emt 0:04:59]} (17. Ne4 $11) 17... fxe6 {[%emt 0:02:41]} 18. Qxe6+ {[%emt 0:00:11] [#]} Rf7 $1 {[%emt 0:01:41]} 19. Bxe7 {[%emt 0:00:07]} Nxe7 $4 {[%emt 0:05:04]} (19... Nf4 $19 {avoids the disaster.} 20. Bd6 Nxe6 21. Bxc7 Rxc7) 20. Rd7 {[%emt 0:00:11]} Qc6 {[%emt 0:13:17]} 21. Rxe7 {[%emt 0:00:11]} Qxe6 {[%emt 0:00:29]} 22. Rxe6 {[%emt 0:00:05]} Bxg2 {[%emt 0:01:14]} 23. Rd6 {[%emt 0:04:36]} Kf8 $18 {[%emt 0:02:07]} 24. Ne2 {[%emt 0:04:10]} Rf2 {[%emt 0:04:45]} 25. Nd4 {[%emt 0:03:29]} Ke7 {[%emt 0:01:59]} 26. h4 {[%emt 0:04:39]} g6 {[%emt 0:02:18]} 27. h5 {[%emt 0:00:52]} gxh5 {[%emt 0:02:28]} 28. Rh6 {[%emt 0:00:09]} Rh8 {[%emt 0:00:48]} 29. Rxa6 {[%emt 0:00:42]} Bh3 {[%emt 0:01:00]} 30. Ra7+ {[%emt 0:00:08]} Kf8 {[%emt 0:00:21]} 31. e6 {[%emt 0:00:08]} Bg2 {[%emt 0:00:42]} 32. e7+ {[%emt 0:00:25]} Ke8 {[%emt 0:00:04]} 33. Nxb5 {[%emt 0:00:11]} Rf6 {[%emt 0:00:22]} 34. Nc7+ {[%emt 0:00:14]} Kd7 {[%emt 0:00:07]} 35. Nd5+ {[%emt 0:00:04]} Kd6 {[%emt 0:00:14]} 36. Nxf6 {[%emt 0:00:07]} Bc6 {[%emt 0:00:14]} 37. e8=Q {[%emt 0:00:10]} Bxe8 {[%emt 0:00:03]} 38. Rxe8 {[%emt 0:00:13] Kd5} 1-0

[Event "FRA-ch Youth U14 2018"]
[Site "Agen"]
[Date "2018.04.20"]
[Round "7"]
[White "Mas, Victor"]
[Black "Lary, Damien"]
[Result "0-1"]
[ECO "E10"]
[WhiteElo "1939"]
[BlackElo "2072"]
[Annotator "NA"]
[PlyCount "70"]
[EventDate "2018.??.??"]
[EventType "swiss"]
[EventCountry "FRA"]
[SourceTitle "playchess.com"]
[Source "ChessBase"]
[SourceQuality "1"]
[TimeControl "5400+30"]

1. d4 {[%emt 0:00:00]} Nf6 {[%emt 0:00:11]} 2. Nf3 {[%emt 0:00:00]} c5 {[%emt 0:01:12]} 3. d5 {[%emt 0:01:08]} e6 {[%emt 0:02:09]} 4. c4 {[%emt 0:02:03]} b5 {[%emt 0:02:29]} 5. dxe6 {[%emt 0:05:18]} fxe6 {[%emt 0:00:26]} 6. cxb5 {[%emt 0:01:35]} d5 {[%emt 0:02:37]} 7. Bg5 {[%emt 0:05:13]} Be7 {[%emt 0:01:10]} 8. e3 {[%emt 0:02:42] E10: Blumenfeld Gambit} Nbd7 {[%emt 0:02:42]} 9. Nc3 {[%emt 0:06:35]} O-O {[%emt 0:03:29]} 10. Be2 {[%emt 0:01:16]} (10. Bd3 Bb7 11. O-O Qe8 12. Qe2 Bd6 13. Bh4 Qh5 14. Bg3 Bxg3 15. fxg3 e5 {1-0 (55) Kortschnoj,V (2557)-Venkatesh,M (2455) San Sebastian 2011}) 10... Bb7 {[%emt 0:04:11]} 11. O-O {[%emt 0:02:43] LiveBook: 8 Games} Qc7 {[%emt 0:00:20]} 12. a4 {[%emt 0:02:58]} Rad8 {[%emt 0:01:25]} 13. a5 {[%emt 0:08:27]} e5 $146 {[%emt 0:04:21]} ({Predecessor:} 13... Rfe8 14. Qc2 Nf8 15. Rfd1 d4 {0-1 (43) Mizsei,J (2056)-Bodrogi,L (2108) Budapest 2008}) 14. Bxf6 {[%emt 0:13:33]} Nxf6 {[%emt 0:01:44]} 15. b6 {[%emt 0:00:39]} axb6 {[%emt 0:15:43]} 16. Nb5 {[%emt 0:00:37]} Qd7 {[%emt 0:05:54]} 17. Nxe5 {[%emt 0:10:26]} Qe6 {[%emt 0:03:51]} 18. Nf3 $11 {[%emt 0:01:11]} bxa5 {[%emt 0:03:22]} 19. Rxa5 {[%emt 0:06:35]} Qb6 {[%emt 0:00:36]} 20. Ra1 {[%emt 0:12:40]} Bc6 {[%emt 0:05:18]} 21. Na7 {[%emt 0:10:56]} Be8 {[%emt 0:00:58]} 22. Qd2 {[%emt 0:00:41]} Ra8 {[%emt 0:02:51]} 23. Ra6 {[%emt 0:00:42]} Qb7 {[%emt 0:02:21]} 24. Rfa1 {[%emt 0:00:33]} Ne4 {[%emt 0:00:42]} 25. Qd1 {[%emt 0:01:38]} c4 {[%emt 0:03:56]} 26. R6a5 {[%emt 0:01:13]} Bc5 {[%emt 0:01:11]} 27. Nb5 {[%emt 0:01:29]} Rxa5 {[%emt 0:04:05]} 28. Rxa5 {[%emt 0:00:05]} Bb6 {[%emt 0:03:15]} 29. Nd6 {[%emt 0:00:27]} Nxd6 {[%emt 0:00:15]} 30. Rxd5 {[%emt 0:00:06]} Nf7 {[%emt 0:09:08]} 31. Bxc4 {[%emt 0:00:05]} Bc6 {[%emt 0:00:41]} 32. Rf5 {[%emt 0:00:49]} Bxf3 {[%emt 0:08:27]} 33. gxf3 {[%emt 0:00:42]} Qe7 {[%emt 0:01:21]} 34. Qb3 {[%emt 0:00:37]} Bc7 {[%emt 0:00:36]} 35. Qb7 {[%emt 0:00:46]} Bxh2+ {[%emt 0:00:06] Qb3 Bc7} 0-1

[Event "FRA-ch Youth U14 2018"]
[Site "Agen"]
[Date "2018.04.20"]
[Round "7"]
[White "Moracchini, Margaux"]
[Black "Courjal, Pauline"]
[Result "1-0"]
[ECO "C10"]
[WhiteElo "1939"]
[BlackElo "1509"]
[Annotator "NA"]
[PlyCount "75"]
[EventDate "2018.??.??"]
[EventType "swiss"]
[EventCountry "FRA"]
[SourceTitle "playchess.com"]
[Source "ChessBase"]
[SourceQuality "1"]
[TimeControl "5400+30"]

1. e4 {[%emt 0:00:00]} e6 {[%emt 0:00:06]} 2. d4 {[%emt 0:00:00]} d5 {[%emt 0:00:05]} 3. Nd2 {[%emt 0:00:00]} dxe4 {[%emt 0:00:04]} 4. Nxe4 {[%emt 0:00:00]} Nd7 {[%emt 0:00:05]} 5. Bd3 {[%emt 0:00:01]} Ngf6 {[%emt 0:00:09] LiveBook: 378 Games} 6. Qe2 {[%emt 0:00:06]} Nxe4 {[%emt 0:02:26]} 7. Bxe4 {[%emt 0:00:29]} Nf6 {[%emt 0:00:27]} 8. Bxb7 {[%emt 0:00:10] C10: French with 3 Nc3: Unusual Black 3rd moves and 3...dxe4} Rb8 {[%emt 0:08:43]} (8... Bxb7 9. Qb5+ Nd7 10. Qxb7 Bd6 11. Nf3 O-O 12. O-O a5 13. a4 Rb8 14. Qa6 Ra8 15. Qe2 c5 16. dxc5 Nxc5 {½-½ (93) Belyakov,B (2486)-Timofeev,A (2549) Sochi 2017}) 9. Bxc8 {[%emt 0:01:45]} Qxc8 {[%emt 0:00:16]} 10. Nf3 {[%emt 0:01:29]} Be7 {[%emt 0:05:35]} 11. O-O {[%emt 0:01:36]} O-O {[%emt 0:00:20]} 12. Ne5 {[%emt 0:03:52]} c5 {[%emt 0:04:43]} 13. dxc5 {[%emt 0:04:29]} Bxc5 $146 {[%emt 0:04:18]} ({Predecessor:} 13... Qxc5 14. Nd3 Qf5 15. Bf4 Rbc8 {½-½ (51) Kochukova,A (1866)-Lenshin,S (1872) Borisoglebsk 2014}) 14. Nd3 {[%emt 0:04:12]} Bd6 {[%emt 0:02:05]} 15. b3 {[%emt 0:09:26]} Qc7 {[%emt 0:05:56]} 16. h3 {[%emt 0:03:15]} Rfc8 {[%emt 0:08:30]} 17. c4 {[%emt 0:01:17]} a5 {[%emt 0:03:49]} 18. Bb2 {[%emt 0:15:50]} a4 {[%emt 0:05:56]} 19. Bxf6 {[%emt 0:05:32]} gxf6 {[%emt 0:00:12]} 20. Rab1 {[%emt 0:01:57]} axb3 {[%emt 0:01:30]} 21. axb3 {[%emt 0:00:07]} Kh8 {[%emt 0:02:08]} 22. Rfc1 $18 {[%emt 0:02:44]} Rg8 {[%emt 0:07:02]} 23. Qf3 {[%emt 0:07:50]} Rg6 {[%emt 0:02:21]} 24. c5 {[%emt 0:04:40]} Be7 {[%emt 0:02:21]} 25. b4 {[%emt 0:02:59]} Rb5 {[%emt 0:04:47]} 26. Ra1 {[%emt 0:05:04]} e5 {[%emt 0:07:13]} 27. Ra8+ {[%emt 0:05:24]} Rb8 {[%emt 0:04:36]} 28. Rxb8+ {[%emt 0:04:56]} Qxb8 {[%emt 0:00:06]} 29. Ra1 {[%emt 0:00:48]} Rg8 {[%emt 0:00:15]} 30. Ra6 {[%emt 0:01:19]} Qc8 {[%emt 0:01:31]} 31. Ra7 {[%emt 0:02:18]} Re8 {[%emt 0:02:48]} 32. Rxe7 {[%emt 0:00:23]} Rxe7 {[%emt 0:01:57]} 33. Qxf6+ {[%emt 0:00:05]} Kg8 {[%emt 0:00:07]} 34. Qxe7 {[%emt 0:00:01]} Qa6 {[%emt 0:00:15]} 35. Nxe5 {[%emt 0:00:31]} Qa1+ {[%emt 0:00:26]} 36. Kh2 {[%emt 0:00:06]} h5 {[%emt 0:00:39]} 37. Qxf7+ {[%emt 0:00:07]} Kh8 {[%emt 0:00:07]} 38. Ng6# 1-0